bitfinex/quotes_ETHUSD_20241024
["timestamp","ask_amount","ask_price","bid_price","bid_amount"]
[1729753711843,2.07451033,2550.3,2550.2,0.18781352]
[1729753712137,0.786,2550.3,2549.9,0.8117]
[1729753712504,2.07451033,2550.3,2549.9,0.8117]
[1729753712700,1.28851033,2550.2,2550.0,0.18841609]
[1729753712906,0.786,2550.3,2550.0,0.18841609]
[1729753713144,2.07451033,2550.3,2550.0,0.18841609]
[1729753715234,0.786,2550.3,2550.0,0.18841609]
[1729753715543,2.07451033,2550.3,2550.0,0.9943477]
[1729753716236,1.28851033,2550.4,2550.0,0.9943477]
[1729753716747,5.60325033,2550.5,2550.0,0.9943477]
[1729753717648,1.28851033,2550.6,2550.0,4.60215934]
[1729753717851,1.28851033,2550.6,2550.0,5.89066967]
[1729753718145,1.28851033,2550.6,2550.1,0.67023697]
[1729753718351,1.28851033,2550.6,2550.2,0.18238774]
[1729753718914,7.05708,2550.7,2550.2,0.18238774]
[1729753719117,7.05708,2550.7,2550.3,0.75]
[1729753719118,1.28851033,2550.7,2550.3,0.75]
[1729753719417,1.28851033,2550.7,2550.4,0.18232011]
[1729753720047,1.28851033,2550.6,2550.4,0.18232011]
[1729753720707,1.28851033,2550.7,2550.4,0.18232011]
[1729753720910,4.31434,2550.8,2550.4,0.18232011]
[1729753720911,1.28851033,2550.6,2550.4,0.18232011]
[1729753721120,4.31434,2550.8,2550.4,0.62846412]
[1729753721351,1.28851033,2550.6,2550.4,0.62846412]
[1729753721845,4.81695033,2550.7,2550.4,0.62846412]
[1729753722043,1.28851033,2550.6,2550.4,0.18232011]
[1729753723016,4.81695033,2550.7,2550.4,0.18232011]
[1729753724153,1.28851033,2550.6,2550.4,0.18232011]
[1729753726413,4.81695033,2550.7,2550.4,0.18232011]
[1729753726931,1.28851033,2550.8,2550.4,0.18232011]
[1729753727254,1.28851033,2550.8,2550.4,0.98919044]
[1729753728758,4.81681033,2550.8,2550.4,0.98919044]
[1729753729057,1.28851033,2550.7,2550.4,0.98919044]
[1729753731263,1.28851033,2550.8,2550.4,0.98919044]
[1729753733255,4.81684033,2550.8,2550.4,0.98919044]
[1729753733442,1.28851033,2550.7,2550.4,0.18232011]
[1729753734158,4.81684033,2550.8,2550.4,0.18232011]
[1729753734775,1.28851033,2550.7,2550.4,0.18232011]
[1729753735355,4.81696033,2550.7,2550.4,0.18232011]
[1729753738477,5.61926033,2550.7,2550.4,0.18232011]
[1729753739677,3.52845,2550.7,2550.4,0.18232011]
[1729753739845,4.81685033,2550.8,2550.4,0.18232011]
[1729753740047,3.52846,2550.7,2550.4,0.18232011]
[1729753740381,4.81697033,2550.7,2550.4,0.18232011]
[1729753741459,3.52846,2550.7,2550.4,0.18232011]
[1729753741639,4.81697033,2550.7,2550.4,0.18232011]
[1729753744682,3.52871,2550.5,2550.4,0.18232011]
[1729753746751,4.81722033,2550.5,2550.4,0.18232011]
[1729753747089,5.61952033,2550.5,2550.4,0.18232011]
[1729753747468,5.61952033,2550.5,2550.0,0.7739]
[1729753747654,5.61952033,2550.5,2550.4,0.18242136]
[1729753747855,5.61952033,2550.5,2550.0,0.85232251]
[1729753748199,11.4,2551.3,2550.0,2.14083284]
[1729753748200,3.52788,2551.1,2550.0,2.14083284]
[1729753748484,1.28851033,2550.5,2550.1,0.1825228]
[1729753748695,4.81717033,2550.6,2550.1,0.1825228]
[1729753748851,8.34583033,2550.6,2550.1,1.11290211]
[1729753749058,4.81717033,2550.6,2550.1,1.11290211]
[1729753750561,8.34587033,2550.6,2550.1,1.11290211]
[1729753750761,8.34587033,2550.6,2550.1,0.1825228]
[1729753751399,1.28851033,2550.2,2550.1,0.1825228]
[1729753751559,1.28851033,2550.2,2549.8,0.7718]
[1729753751759,3.52927,2550.1,2549.8,0.7718]
[1729753751971,4.81778033,2550.1,2549.9,0.18259044]
[1729753752664,3.52941,2550.0,2549.7,0.03066792]
[1729753752863,4.81778033,2550.1,2549.7,0.03066792]
[1729753753189,3.52927,2550.1,2549.7,0.03066792]
[1729753753402,4.81778033,2550.1,2549.7,0.03066792]
[1729753754300,0.83,2550.0,2549.7,0.03066792]
[1729753754456,1.28851033,2549.9,2549.7,0.03066792]
[1729753754655,4.81807033,2549.9,2549.7,0.03066792]
[1729753755095,0.83,2550.0,2549.7,0.03066792]
[1729753755293,4.81778033,2550.1,2549.7,0.03066792]
[1729753755590,8.34714033,2550.1,2549.6,0.7718]
[1729753755798,4.81778033,2550.1,2549.6,0.7718]
[1729753755999,3.52942,2550.0,2549.6,1.33868282]
[1729753756298,4.81793033,2550.0,2549.6,1.33868282]
[1729753756470,4.81793033,2550.0,2549.6,0.7718]
[1729753756871,3.52942,2550.0,2549.6,0.7718]
[1729753757299,4.81779033,2550.1,2549.7,0.07843541]
[1729753758267,3.5291,2550.3,2549.8,0.7718]
[1729753758507,3.52878,2550.5,2549.8,0.7718]
[1729753758508,1.28851033,2550.4,2549.9,3.82184729]
[1729753758804,4.81737033,2550.4,2549.9,3.82184729]
[1729753759002,4.81729033,2550.5,2549.9,8.63989762]
[1729753759168,4.81729033,2550.5,2550.0,0.7718]
[1729753759369,4.81729033,2550.5,2550.0,1.43059539]
[1729753759571,1.28851033,2550.4,2550.0,1.35217249]
[1729753761094,1.28851033,2550.4,2550.0,1.43059544]
[1729753761294,1.28851033,2550.3,2550.0,0.7718]
[1729753763009,1.28851033,2550.3,2550.1,0.18313758]
[1729753763872,4.81738033,2550.4,2550.1,0.18313758]
[1729753765103,1.28851033,2550.5,2550.1,0.18313758]
[1729753765474,3.52854,2550.7,2550.3,0.7718]
[1729753765677,4.81705033,2550.7,2550.3,0.7718]
[1729753765874,4.81705033,2550.7,2550.4,0.18304338]
[1729753766282,1.28851033,2550.6,2550.4,0.18304338]
[1729753766493,4.81705033,2550.7,2550.4,0.18304338]
[1729753766696,1.28851033,2550.6,2550.4,0.18304338]
[1729753767278,4.81722033,2550.5,2550.4,0.18304338]
[1729753767483,5.64722033,2550.5,2550.4,0.18304338]
[1729753767671,5.64722033,2550.5,2550.0,0.7718]
[1729753767672,3.52896,2550.4,2550.0,0.7718]
[1729753767896,1.28851033,2550.3,2550.0,0.7718]
[1729753768075,1.28851033,2550.2,2550.0,0.7718]
[1729753768271,1.28851033,2550.2,2549.8,0.7718]
[1729753768477,1.28851033,2550.2,2549.8,1.201955]
[1729753769705,1.28851033,2550.2,2549.8,4.731525]
[1729753770013,1.28851033,2550.2,2549.8,4.731615]
[1729753770590,1.28851033,2550.2,2549.8,1.201955]
[1729753771275,1.28851033,2550.2,2549.8,4.731615]
[1729753772638,1.28851033,2550.1,2549.8,1.201955]
[1729753772800,2.11851033,2550.1,2549.8,0.7718]
[1729753773135,2.11851033,2550.1,2549.6,0.7718]
[1729753773804,2.11851033,2550.1,2549.6,4.30172]
[1729753774138,0.83,2550.1,2549.7,0.783169]
[1729753775108,0.83,2550.1,2549.7,4.312989]
[1729753776334,0.83,2550.1,2549.7,3.52982]
[1729753776626,0.83,2550.1,2549.6,0.7718]
[1729753776627,5.64779033,2550.1,2549.6,0.7718]
[1729753777242,1.28851033,2549.8,2549.4,0.7718]
[1729753777537,1.28851033,2549.9,2549.4,4.30202]
[1729753777693,7.05903,2550.0,2549.4,4.30202]
[1729753777694,4.81801033,2550.0,2549.4,4.30202]
[1729753777899,3.5295,2550.0,2549.5,3.71353907]
[1729753778102,0.83,2550.1,2549.6,3.60839121]
[1729753778405,5.64779033,2550.1,2549.5,4.65171614]
[1729753778731,5.64779033,2550.1,2549.6,0.18341524]
[1729753779948,0.83,2550.1,2549.7,0.7858]
[1729753780244,0.83,2550.1,2549.7,0.96918141]
[1729753780396,3.5292,2550.2,2549.7,0.96918141]
[1729753780732,3.5292,2550.2,2549.7,4.49898141]
[1729753781037,3.5292,2550.2,2549.7,0.96918141]
[1729753781249,4.333,2550.3,2549.7,0.96918141]
[1729753781417,5.62151033,2550.3,2549.7,4.49893141]
[1729753782051,5.62151033,2550.3,2549.7,5.52449429]
[1729753782350,5.62151033,2550.3,2549.7,5.60292424]
[1729753782512,5.62151033,2550.3,2549.7,5.52449429]
[1729753782831,5.62151033,2550.3,2549.7,1.99474429]
[1729753783613,3.52893,2550.4,2549.8,5.07431033]
[1729753783813,7.05786,2550.4,2549.9,0.63616846]
[1729753784008,3.52893,2550.4,2549.9,0.81956904]
[1729753784745,3.52893,2550.4,2549.9,0.89799688]
[1729753784911,3.52866,2550.6,2550.1,0.7858]
[1729753785098,0.804,2550.7,2550.2,1.28851033]
[1729753785303,2.09251033,2550.7,2550.3,0.56819708]
[1729753785641,2.09251033,2550.7,2550.3,0.18326531]
[1729753785806,1.28851033,2550.6,2550.1,4.31504]
[1729753786208,1.28851033,2550.6,2550.2,0.18329912]
[1729753786399,4.33251,2550.7,2550.2,0.18329912]
[1729753786622,1.28851033,2550.6,2550.2,0.18329912]
[1729753786934,1.28851033,2550.6,2550.2,0.91170114]
[1729753787137,4.81712033,2550.6,2550.2,0.91170114]
[1729753787316,1.28851033,2550.5,2550.2,0.18329912]
[1729753787516,4.81712033,2550.6,2550.2,0.18329912]
[1729753788443,4.81726033,2550.5,2550.2,0.18329912]
[1729753789940,1.28851033,2550.3,2550.2,0.18329912]
[1729753790142,4.81750033,2550.3,2550.2,0.18329912]
[1729753790332,4.81750033,2550.3,2549.9,0.7858]
[1729753790505,3.52899,2550.3,2550.2,0.18310379]
[1729753790705,4.81750033,2550.3,2549.9,0.7858]
[1729753790926,4.81750033,2550.3,2550.2,0.18310379]
[1729753791119,4.81750033,2550.3,2549.9,0.7858]
[1729753791363,4.81750033,2550.3,2550.2,0.18310379]
[1729753791532,4.81750033,2550.3,2549.9,0.7858]
[1729753791736,4.81750033,2550.3,2550.2,0.18310379]
[1729753791901,4.81750033,2550.3,2549.9,0.7858]
[1729753792111,4.81750033,2550.3,2550.2,0.18310379]
[1729753792444,4.81750033,2550.3,2549.9,0.7858]
[1729753792606,4.81750033,2550.3,2550.2,0.18310379]
[1729753792803,4.81750033,2550.3,2549.9,0.7858]
[1729753793008,4.81750033,2550.3,2550.2,0.18310379]
[1729753793301,1.28851033,2550.3,2550.2,0.18310379]
[1729753793504,1.28851033,2550.3,2549.9,0.7858]
[1729753793709,1.28851033,2550.3,2550.2,0.18310379]
[1729753793942,1.28851033,2550.3,2549.9,0.7858]
[1729753794145,1.28851033,2550.3,2550.2,0.18310379]
[1729753794329,1.28851033,2550.3,2549.9,0.7858]
[1729753794934,1.28851033,2550.3,2550.0,0.17093057]
[1729753795167,4.81755033,2550.3,2550.0,0.17093057]
[1729753795712,1.28851033,2550.2,2550.0,0.17093057]
[1729753795912,1.28851033,2550.3,2550.0,0.17093057]
[1729753797550,3.52927,2550.1,2550.0,0.17093057]
[1729753797751,1.28851033,2550.2,2549.7,0.7552]
[1729753797752,4.81766033,2550.2,2549.7,0.7552]
[1729753797950,3.52915,2550.2,2550.0,0.17093057]
[1729753798135,3.52915,2550.2,2549.7,0.7552]
[1729753798136,4.81766033,2550.2,2549.7,0.7552]
[1729753798753,4.81766033,2550.2,2549.8,0.17118632]
[1729753800748,2.11941033,2550.1,2549.8,0.17118632]
[1729753802255,0.8309,2550.1,2549.8,0.17118632]
[1729753802851,4.36021,2550.1,2549.8,0.17118632]
[1729753803043,5.64872033,2550.1,2549.8,0.17118632]
[1729753803375,0.8309,2550.4,2549.8,3.70077632]
[1729753803519,1.28851033,2550.3,2549.8,3.70077632]
[1729753804020,5.64827033,2550.4,2549.8,7.23037632]
[1729753804258,1.28851033,2550.3,2549.8,0.17118632]
[1729753804550,5.64827033,2550.4,2549.8,3.70074632]
[1729753804749,0.8309,2550.4,2550.0,0.7552]
[1729753805133,0.8309,2550.4,2550.1,0.17102697]
[1729753805322,2.11941033,2550.4,2550.1,0.17102697]
[1729753805752,0.8309,2550.4,2550.1,0.17102697]
[1729753805954,4.81724033,2550.5,2550.1,0.17102697]
[1729753806456,4.81724033,2550.5,2550.1,0.69723766]
[1729753806957,1.28851033,2550.4,2550.1,0.69723766]
[1729753808871,4.81740033,2550.4,2550.1,0.69723766]
[1729753809951,4.81752033,2550.3,2550.1,0.17102697]
[1729753810354,1.28851033,2550.3,2550.1,0.17102697]
[1729753810663,4.81740033,2550.4,2550.1,0.17102697]
[1729753811656,3.52889,2550.4,2550.1,0.17102697]
[1729753811859,4.81740033,2550.4,2550.1,0.17102697]
[1729753813282,3.529,2550.3,2550.1,0.17102697]
[1729753813648,8.34634033,2550.4,2550.1,0.17102697]
[1729753813849,4.81740033,2550.4,2550.1,0.17102697]
[1729753814155,3.52906,2550.3,2550.1,0.17102697]
[1729753816972,3.52913,2550.2,2550.1,0.17102697]
[1729753817342,3.52913,2550.2,2549.8,0.7906]
[1729753817547,3.52913,2550.2,2550.1,0.17097631]
[1729753818063,3.52935,2550.1,2549.5,3.53001]
[1729753818257,3.52935,2550.1,2549.6,1.57245203]
[1729753818481,4.81786033,2550.1,2549.6,1.57245203]
[1729753818786,3.52935,2550.1,2549.6,1.57245203]
[1729753821252,4.34193,2550.2,2549.6,5.10239203]
[1729753821453,7.87119,2550.2,2549.6,1.57245203]
[1729753821678,7.87119,2550.2,2549.7,0.63909724]
[1729753822876,7.87119,2550.2,2549.8,0.17120078]
[1729753823448,4.81779033,2550.1,2549.8,0.17120078]
[1729753823766,5.63086033,2549.9,2549.5,0.7906]
[1729753823964,4.34235,2549.9,2549.5,0.7906]
[1729753826193,5.63086033,2549.9,2549.5,0.7906]
[1729753826499,1.28851033,2549.7,2549.2,0.85827394]
[1729753826854,4.81836033,2549.7,2549.2,0.8276]
[1729753827062,3.52997,2549.6,2549.2,0.8276]
[1729753829823,3.52982,2549.7,2549.2,0.8276]
[1729753830022,8.34799033,2549.8,2549.3,0.5199281]
[1729753830411,4.34235,2549.9,2549.3,5.33873843]
[1729753830588,3.52948,2550.0,2549.5,0.8276]
[1729753830791,3.52942,2550.0,2549.5,0.8276]
[1729753831116,4.81793033,2550.0,2549.5,0.8276]
[1729753831312,4.81793033,2550.0,2549.6,0.91764403]
[1729753831718,4.81793033,2550.0,2549.5,0.8276]
[1729753833820,8.34741033,2550.0,2549.5,0.8276]
[1729753834091,4.81773033,2550.2,2549.6,3.52995]
[1729753834291,3.52928,2550.1,2549.6,3.52995]
[1729753835413,4.81779033,2550.1,2549.6,3.52995]
[1729753835603,4.81779033,2550.1,2549.6,4.44757003]
[1729753837818,4.81779033,2550.1,2549.7,0.25265237]
[1729753839032,1.28851033,2550.1,2549.7,3.78244237]
[1729753839235,1.28851033,2550.1,2549.8,0.7947]
[1729753839558,1.28851033,2550.1,2549.9,0.25257838]
[1729753840359,1.28851033,2550.0,2549.9,0.25257838]
[1729753840914,1.28851033,2550.1,2549.9,0.25257838]
[1729753841562,4.81780033,2550.1,2549.9,0.25257838]
[1729753842084,1.28851033,2550.0,2549.9,0.25257838]
[1729753843040,1.28851033,2550.0,2549.6,0.7947]
[1729753843242,1.28851033,2550.0,2549.9,0.25249154]
[1729753843440,1.28851033,2550.0,2549.6,4.32466]
[1729753843648,1.28851033,2550.0,2549.9,0.25249154]
[1729753844155,1.28851033,2550.0,2549.6,4.32466]
[1729753844357,1.28851033,2550.0,2549.9,0.25249154]
[1729753844559,1.28851033,2550.0,2549.6,4.32466]
[1729753844780,4.81792033,2550.0,2549.9,0.25249154]
[1729753845074,4.81792033,2550.0,2549.6,0.7947]
[1729753845075,5.56852033,2550.0,2549.6,0.7947]
[1729753845277,4.28001,2550.0,2549.9,0.25249154]
[1729753845456,5.56852033,2550.0,2549.6,0.7947]
[1729753845654,4.28001,2550.0,2549.9,0.25249154]
[1729753845997,5.060939,2550.0,2549.9,0.25249154]
[1729753846155,5.060939,2550.0,2549.4,4.32487]
[1729753846364,4.28001,2550.0,2549.9,0.25248431]
[1729753846547,4.28001,2550.0,2549.5,3.53007]
[1729753846751,1.28851033,2549.9,2549.4,4.32487]
[1729753847844,1.28851033,2549.9,2549.4,4.32486]
[1729753848082,4.81806033,2549.9,2549.4,4.32486]
[1729753848285,4.81806033,2549.9,2549.4,5.53924403]
[1729753848585,2.03911033,2550.0,2549.5,3.53008]
[1729753849457,5.56854033,2550.0,2549.5,3.53008]
[1729753849677,5.56854033,2550.0,2549.4,9.06940403]
[1729753850282,5.56854033,2550.0,2549.4,5.53924403]
[1729753850461,5.56854033,2550.0,2549.5,0.68277544]
[1729753850662,4.81779033,2550.1,2549.6,0.7947]
[1729753852225,2.03911033,2550.2,2549.7,3.52975]
[1729753852412,3.0,2550.8,2549.9,4.32423]
[1729753852413,4.27948,2550.4,2549.9,4.32423]
[1729753852578,0.780826,2550.3,2549.9,0.7947]
[1729753852921,1.28851033,2550.3,2550.0,0.25252689]
[1729753853125,4.81752033,2550.3,2550.0,0.25252689]
[1729753854419,4.81752033,2550.3,2550.0,0.22705556]
[1729753854848,1.28851033,2550.2,2550.0,0.22705556]
[1729753855318,1.28851033,2550.1,2550.0,0.22705556]
[1729753855694,1.28851033,2550.1,2549.7,4.30211]
[1729753856101,4.81764033,2550.2,2549.8,0.25175184]
[1729753856291,1.28851033,2550.2,2549.8,0.25175184]
[1729753856696,1.28851033,2550.2,2549.8,3.78142184]
[1729753856913,4.81752033,2550.3,2549.8,0.25175184]
[1729753857121,0.7506,2550.4,2549.8,0.25175184]
[1729753857122,0.7506,2550.4,2549.8,2.47747539]
[1729753857322,4.30374,2550.6,2550.0,4.81779033]
[1729753857498,1.28851033,2550.5,2550.0,3.52928]
[1729753857705,1.28851033,2550.5,2550.1,0.25159743]
[1729753857920,5.59225033,2550.6,2550.1,0.25159743]
[1729753858105,1.28851033,2550.5,2550.1,0.25159743]
[1729753859211,5.59225033,2550.6,2550.1,0.25159743]
[1729753859642,1.28851033,2550.5,2550.1,0.25159743]
[1729753859853,1.28851033,2550.5,2550.1,0.84360856]
[1729753860031,5.59225033,2550.6,2550.1,0.84360856]
[1729753860232,1.28851033,2550.5,2550.1,0.84360856]
[1729753860744,5.59225033,2550.6,2550.1,0.84360856]
[1729753861105,1.28851033,2550.5,2550.1,0.84360856]
[1729753862113,4.81723033,2550.5,2550.1,0.84360856]
[1729753863746,3.52872,2550.5,2550.1,0.84360856]
[1729753863947,4.81723033,2550.5,2550.1,0.84360856]
[1729753864543,3.52872,2550.5,2550.1,0.84360856]
[1729753864744,2.06361033,2550.6,2550.1,0.84360856]
[1729753864908,3.52837,2550.8,2550.2,6.02713919]
[1729753865109,4.81688033,2550.8,2550.3,1.02382346]
[1729753865310,1.28851033,2550.8,2550.3,1.02382346]
[1729753865506,3.52824,2550.9,2550.3,6.52836117]
[1729753865911,3.52831,2550.8,2550.3,2.99940117]
[1729753866777,3.52831,2550.8,2550.3,6.52838117]
[1729753866994,3.52796,2551.1,2550.5,4.30092]
[1729753867192,3.52767,2551.3,2550.6,5.58929033]
[1729753867193,4.81634033,2551.2,2550.6,5.58929033]
[1729753867389,4.81641033,2551.1,2550.6,1.0229239]
[1729753867596,4.81660033,2551.0,2550.6,1.0229239]
[1729753868298,1.28851033,2550.9,2550.6,1.0229239]
[1729753871485,1.28851033,2551.1,2550.6,5.00657729]
[1729753871989,1.28851033,2551.0,2550.6,5.00657729]
[1729753872508,1.28851033,2551.0,2550.6,1.47808729]
[1729753872673,1.28851033,2550.9,2550.6,1.0229239]
[1729753873004,1.28851033,2551.0,2550.6,4.5514739]
[1729753874815,1.28851033,2550.9,2550.6,4.5514739]
[1729753875111,1.28851033,2551.0,2550.6,4.5514739]
[1729753875403,1.28851033,2550.9,2550.6,1.0229239]
[1729753876082,1.28851033,2550.8,2550.6,1.0229239]
[1729753876297,4.81669033,2550.9,2550.6,1.0229239]
[1729753876472,5.72937936,2550.9,2550.6,1.0229239]
[1729753879496,4.81695033,2550.7,2550.6,0.2506239]
[1729753879906,4.81695033,2550.7,2550.2,4.32275]
[1729753880219,1.28851033,2550.5,2550.2,4.32275]
[1729753880384,3.52844,2550.7,2550.3,0.24189518]
[1729753880585,1.28851033,2550.6,2550.2,4.32275]
[1729753880924,1.28851033,2550.6,2550.4,0.2418582]
[1729753881086,1.28851033,2550.6,2550.3,0.24189518]
[1729753881420,1.28851033,2550.6,2550.4,0.2418582]
[1729753881588,1.28851033,2550.6,2550.2,4.32275]
[1729753881789,1.28851033,2550.6,2550.5,0.24182122]
[1729753881989,1.28851033,2550.6,2550.2,4.32275]
[1729753882210,1.28851033,2550.6,2550.5,0.24182122]
[1729753882414,1.84843536,2550.6,2550.2,4.32275]
[1729753882713,1.28851033,2550.6,2550.5,0.24182122]
[1729753882922,1.28851033,2550.6,2550.2,4.32275]
[1729753883096,1.28851033,2550.6,2550.5,0.24182122]
[1729753883297,1.28851033,2550.6,2550.2,4.32275]
[1729753883507,3.52859,2550.6,2550.5,0.24182122]
[1729753883712,3.52859,2550.6,2550.2,0.7937]
[1729753883713,5.60103333,2550.6,2550.2,0.7937]
[1729753883921,4.312523,2550.6,2550.5,0.2419297]
[1729753884229,3.52881,2550.5,2550.2,0.7937]
[1729753884593,4.81732033,2550.5,2550.2,0.7937]
[1729753884935,2.07244333,2550.6,2550.2,0.7937]
[1729753886016,5.60102333,2550.6,2550.2,0.7937]
[1729753887415,4.81709033,2550.6,2550.2,0.7937]
[1729753892850,1.28851033,2550.5,2550.2,0.7937]
[1729753893513,4.81709033,2550.6,2550.2,0.7937]
[1729753895538,3.52858,2550.6,2550.2,0.7937]
[1729753897544,4.81709033,2550.6,2550.2,0.7937]
[1729753897920,4.81709033,2550.6,2550.3,0.24224233]
[1729753898139,3.52858,2550.6,2550.3,0.24224233]
[1729753898358,3.52858,2550.6,2550.2,0.7937]
[1729753898653,3.52858,2550.6,2550.3,0.24224233]
[1729753898849,1.28851033,2550.5,2550.2,0.7937]
[1729753899013,3.52873,2550.5,2550.4,0.24220534]
[1729753899214,3.52873,2550.5,2550.2,0.7937]
[1729753899441,3.52873,2550.5,2550.4,0.24240788]
[1729753899756,4.44135803,2550.6,2550.2,0.7937]
[1729753899974,3.52858,2550.6,2550.3,0.24244486]
[1729753900256,3.52858,2550.6,2550.2,0.7937]
[1729753900556,3.52858,2550.6,2550.4,0.24240788]
[1729753900725,3.52858,2550.6,2550.5,0.2423709]
[1729753900926,3.52837,2550.8,2550.6,0.7997]
[1729753901163,5.52252533,2550.8,2550.7,0.24231141]
[1729753901673,4.234015,2550.8,2550.7,0.24231141]
[1729753902076,5.52252533,2550.8,2550.7,0.24231141]
[1729753902477,5.52252533,2550.8,2550.4,0.7997]
[1729753902644,5.52252533,2550.8,2550.7,0.24231141]
[1729753902844,3.52857,2550.7,2550.2,0.7997]
[1729753903138,4.81708033,2550.7,2550.2,0.7997]
[1729753903769,3.52857,2550.7,2550.2,0.7997]
[1729753905061,1.28851033,2550.7,2550.2,0.7997]
[1729753905266,7.05726,2550.6,2550.2,0.7997]
[1729753905436,3.5286,2550.6,2550.2,0.7997]
[1729753906767,3.52874,2550.5,2550.2,0.7997]
[1729753907640,3.5286,2550.6,2550.2,0.7997]
[1729753909668,3.52858,2550.6,2550.2,0.7997]
[1729753913077,4.2986,2550.8,2550.3,0.24243762]
[1729753913270,4.2986,2550.8,2550.2,4.32876]
[1729753913567,4.2986,2550.8,2550.4,0.24242958]
[1729753913772,4.2986,2550.8,2550.5,0.2423926]
[1729753913942,4.2986,2550.8,2550.2,7.85782]
[1729753914265,4.2986,2550.8,2550.3,0.24246656]
[1729753914448,4.2986,2550.8,2550.2,4.32876]
[1729753914642,4.2986,2550.8,2550.4,0.24242958]
[1729753914848,7.827,2550.8,2550.2,4.32876]
[1729753915048,7.827,2550.8,2550.5,0.2423926]
[1729753915250,7.827,2550.8,2550.2,4.32876]
[1729753915471,7.827,2550.8,2550.6,0.24235562]
[1729753915669,8.73855103,2550.8,2550.2,4.32876]
[1729753915878,4.2986,2550.8,2550.7,0.24231865]
[1729753916193,4.2986,2550.8,2550.2,4.32876]
[1729753916334,4.2986,2550.8,2550.7,0.24231865]
[1729753917054,4.2986,2550.8,2550.2,4.32876]
[1729753917261,4.2986,2550.8,2550.7,0.24231865]
[1729753917575,5.21012703,2550.8,2550.2,4.32876]
[1729753917768,4.2986,2550.8,2550.2,4.32876]
[1729753918163,4.2986,2550.8,2550.3,0.24246656]
[1729753918367,4.2986,2550.8,2550.2,4.32876]
[1729753918701,4.2986,2550.8,2550.3,0.24246656]
[1729753919175,4.2986,2550.8,2550.2,4.32876]
[1729753919347,4.2986,2550.8,2550.4,0.24242958]
[1729753919554,4.2986,2550.8,2550.5,0.2423926]
[1729753919752,4.2986,2550.8,2550.2,5.24341803]
[1729753920069,4.2986,2550.8,2550.3,0.24246656]
[1729753920278,3.52816,2550.9,2550.3,0.8254]
[1729753920461,3.52809,2551.0,2550.5,0.8254]
[1729753920644,3.52825,2550.9,2550.5,0.8254]
[1729753920998,3.52844,2550.7,2550.6,0.24229052]
[1729753921196,0.8107,2550.9,2550.2,0.8254]
[1729753921478,4.33946,2550.5,2550.2,0.8254]
[1729753921652,5.25512803,2550.5,2550.2,0.8254]
[1729753921851,4.33946,2550.5,2550.2,0.8254]
[1729753922738,3.52887,2550.4,2550.2,0.8254]
[1729753922935,3.52887,2550.4,2549.9,0.8254]
[1729753923575,3.52887,2550.4,2549.9,4.35494]
[1729753923779,7.05781,2550.4,2549.9,0.8254]
[1729753923984,3.52902,2550.3,2549.9,0.8254]
[1729753924142,3.52914,2550.2,2549.9,0.8254]
[1729753924490,8.34636033,2550.4,2549.9,0.8254]
[1729753924658,3.52901,2550.3,2549.9,0.8254]
[1729753924856,4.81752033,2550.3,2549.9,0.8254]
[1729753925491,3.52901,2550.3,2549.9,0.8254]
[1729753927783,3.52901,2550.3,2550.0,0.23441569]
[1729753929394,7.05809,2550.3,2550.0,0.23441569]
[1729753929599,3.52927,2550.1,2550.0,0.23441569]
[1729753929905,3.52927,2550.1,2549.6,3.52988]
[1729753929906,3.52927,2550.1,2549.6,4.35728]
[1729753930060,5.64724033,2550.2,2550.0,0.23454592]
[1729753930261,5.64724033,2550.2,2549.6,4.35728]
[1729753930497,5.64724033,2550.2,2550.1,0.23450893]
[1729753930702,6.65643837,2550.2,2549.6,4.35728]
[1729753931296,6.65643837,2550.2,2549.7,0.23465691]
[1729753932070,5.36792804,2550.2,2549.7,1.52316724]
[1729753932259,3.52913,2550.2,2549.7,1.52316724]
[1729753932772,3.52913,2550.2,2549.7,0.23465691]
[1729753932959,3.52913,2550.2,2549.7,1.52316724]
[1729753933160,3.52913,2550.2,2549.7,0.23465691]
[1729753933585,4.81764033,2550.2,2549.7,0.23465691]
[1729753933897,3.52927,2550.1,2549.7,0.23465691]
[1729753939493,0.0048046,2550.0,2549.7,0.23465691]
[1729753940015,0.0048046,2550.0,2549.9,1.28851033]
[1729753940161,0.0048046,2550.0,2549.7,5.05291724]
[1729753940362,0.0048046,2550.0,2549.8,0.23461991]
[1729753941402,0.0048046,2550.0,2549.8,1.17563493]
[1729753941583,0.0048046,2550.0,2549.8,5.99378526]
[1729753941894,0.0048046,2550.0,2549.9,5.72389186]
[1729753942101,0.0048046,2550.0,2549.9,5.95855434]
[1729753943263,0.0048046,2550.0,2549.9,8.96855434]
[1729753943501,0.0048046,2550.0,2549.9,10.23404775]
[1729753945662,0.0048046,2550.0,2549.9,11.28326297]
[1729753946365,0.0048046,2550.0,2549.9,10.78404775]
[1729753949511,0.0048046,2550.0,2549.9,12.23404775]
[1729753950404,0.0048046,2550.0,2549.9,10.78404775]
[1729753951872,0.0048046,2550.0,2549.9,11.28326297]
[1729753953283,0.8296,2551.0,2550.3,0.8274]
[1729753953504,0.8296,2551.5,2551.0,3.52799]
[1729753953707,0.8296,2551.5,2550.9,1.28851033]
[1729753953926,8.34358033,2551.4,2551.1,0.23333635]
[1729753954071,3.52748,2551.4,2551.0,0.23337331]
[1729753954270,4.81599033,2551.4,2551.2,0.23329939]
[1729753954512,4.81599033,2551.4,2551.1,0.23333635]
[1729753954706,4.81599033,2551.4,2551.3,0.23326243]
[1729753954911,4.81599033,2551.4,2551.2,0.23329939]
[1729753955068,4.81599033,2551.4,2550.9,0.07839463]
[1729753955069,3.52748,2551.4,2551.3,0.23326243]
[1729753955271,3.52748,2551.4,2550.9,1.36690496]
[1729753955485,3.52748,2551.4,2551.3,0.23326243]
[1729753955704,5.73327836,2551.4,2550.9,0.07839463]
[1729753955892,5.73327836,2551.4,2551.3,0.23326243]
[1729753956092,5.73327836,2551.4,2550.8,9.17229033]
[1729753956335,4.81599033,2551.4,2551.3,0.23326243]
[1729753956485,4.81599033,2551.4,2550.8,5.64408033]
[1729753956684,4.81599033,2551.4,2551.3,0.23326243]
[1729753957005,4.81599033,2551.4,2550.8,9.17229033]
[1729753957216,2.11811033,2551.2,2550.6,7.88448]
[1729753957417,4.81647033,2551.1,2550.6,3.52854]
[1729753957574,5.64616033,2551.0,2550.5,3.0]
[1729753957774,5.64616033,2551.0,2550.4,4.35612]
[1729753957775,5.64616033,2551.0,2550.7,0.23338299]
[1729753957994,5.64616033,2551.0,2550.6,0.23341996]
[1729753958207,5.64616033,2551.0,2550.8,0.23334602]